bitfinex-derivatives/quotes_BTCF0:USTF0_20251204
["timestamp","ask_amount","ask_price","bid_price","bid_amount"]
[1764817751069,0.05689,94039.0,94038.0,0.0566]
[1764817752069,0.0106325,94043.0,94042.0,0.0566]
[1764817752265,0.00015949,94045.0,94044.0,0.0566]
[1764817754676,0.00015949,94045.0,94044.0,0.0586]
[1764817755064,0.00015949,94045.0,94044.0,0.0566]
[1764817755264,0.00015949,94045.0,94044.0,0.0606]
[1764817757268,0.00015949,94045.0,94044.0,0.0566]
[1764817757475,0.00015949,94045.0,94044.0,0.0596]
[1764817764593,0.00015949,94045.0,94044.0,0.0606]
[1764817765589,0.0106305,94062.0,94061.0,0.0566]
[1764817765982,0.4187599,94066.0,94065.0,0.0566]
[1764817767496,0.35124,94066.0,94065.0,0.0566]
[1764817767687,0.35124,94066.0,94065.0,0.0576]
[1764817767886,0.37986,94066.0,94065.0,0.0576]
[1764817768086,0.35124,94066.0,94065.0,0.0576]
[1764817769397,0.37986,94066.0,94065.0,0.0576]
[1764817769789,0.37986,94066.0,94065.0,0.0596]
[1764817770097,0.02862,94066.0,94065.0,0.0596]
[1764817771097,0.05689,94066.0,94065.0,0.0596]
[1764817772202,0.07433,94066.0,94065.0,0.003]
[1764817773702,0.05574,94057.0,94056.0,0.05742949]
[1764817774899,0.05574,94057.0,94056.0,0.00015949]
[1764817775110,0.05574,94057.0,94056.0,0.05660949]
[1764817775900,0.05574,94057.0,94056.0,0.05760949]
[1764817776101,0.05574,94057.0,94056.0,0.00115949]
[1764817776301,0.07276,94045.0,94044.0,0.02761]
[1764817776708,0.07276,94045.0,94044.0,0.05645]
[1764817777910,0.0558,94039.0,94038.0,0.13263207]
[1764817778501,0.0558,94039.0,94038.0,0.05645]
[1764817779312,0.0558,94039.0,94038.0,0.05845]
[1764817779912,0.0558,94039.0,94038.0,0.07565]
[1764817780413,0.0558,94039.0,94038.0,0.07365]
[1764817780600,0.0558,94039.0,94038.0,0.07565]
[1764817781300,0.00015949,94054.0,94043.0,0.0106325]
[1764817781501,0.05847949,94054.0,94053.0,0.0579]
[1764817782508,0.00015949,94054.0,94053.0,0.0599]
[1764817783508,0.00015949,94054.0,94053.0,0.0579]
[1764817783715,0.00015949,94054.0,94053.0,0.0599]
[1764817784310,0.05847949,94054.0,94053.0,0.0599]
[1764817784709,0.00015949,94054.0,94053.0,0.0599]
[1764817785413,0.02912949,94054.0,94053.0,0.0599]
[1764817785615,0.05847949,94054.0,94053.0,0.0599]
[1764817788511,0.05847949,94054.0,94053.0,0.002]
[1764817788815,0.05832,94045.0,94044.0,0.0579]
[1764817789405,0.07489,94045.0,94044.0,0.02955]
[1764817789911,0.02912949,94054.0,94053.0,0.0579]
[1764817790306,0.05847949,94054.0,94053.0,0.0579]
[1764817791015,0.02912949,94054.0,94053.0,0.0579]
[1764817792113,0.00015949,94054.0,94053.0,0.0579]
[1764817793009,0.00015949,94054.0,94053.0,0.0609]
[1764817794912,0.00015949,94054.0,94053.0,0.0619]
[1764817795412,0.00015949,94054.0,94053.0,0.0579]
[1764817795616,0.00015949,94054.0,94053.0,0.0609]
[1764817796014,0.05847949,94054.0,94053.0,0.0609]
[1764817797311,0.05847949,94054.0,94053.0,0.003]
[1764817798315,0.05847949,94054.0,94045.0,0.07618207]
[1764817798316,0.0106314,94053.0,94045.0,0.07618207]
[1764817798519,0.05832,94046.0,94045.0,0.13408207]
[1764817799622,0.05832,94046.0,94045.0,0.0579]
[1764817800021,0.05832,94046.0,94045.0,0.0599]
[1764817801014,0.05847949,94054.0,94053.0,0.0579]
[1764817801825,0.0689522,94046.0,94045.0,0.13508207]
[1764817802012,0.0689522,94046.0,94045.0,0.001]
[1764817802218,0.05832,94036.0,94031.0,9.467e-05]
[1764817802820,0.05832,94036.0,94035.0,0.07517282]
[1764817804630,0.06032,94036.0,94035.0,0.07517282]
[1764817805428,0.05832,94036.0,94035.0,0.04682282]
[1764817806322,0.05832,94036.0,94035.0,0.07554282]
[1764817808728,0.05832,94036.0,94035.0,0.07654282]
[1764817810425,0.05832,94036.0,94035.0,0.01827282]
[1764817810823,0.0687164,94009.0,94008.0,0.05858]
[1764817811138,0.0687164,94009.0,93994.0,0.13227309]
[1764817811139,0.05808,94007.0,93994.0,0.13227309]
[1764817811332,0.05808,94007.0,93989.0,0.01787]
[1764817811629,0.05808,94007.0,94006.0,0.01785707]
[1764817811819,0.05820586,94007.0,94006.0,0.01785707]
[1764817812631,0.05820586,94007.0,94006.0,0.02285707]
[1764817813429,0.05820586,94007.0,94006.0,0.02185707]
[1764817814228,0.05820586,94007.0,94006.0,0.01785707]
[1764817814718,0.05920586,94007.0,94006.0,0.01785707]
[1764817815224,0.05808,93998.0,93997.0,0.00015949]
[1764817815833,0.05808,93998.0,93997.0,0.01735792]
[1764817816033,0.05808,93998.0,93997.0,0.00015949]
[1764817816331,0.0687176,93998.0,93997.0,0.00015949]
[1764817816526,0.0687176,93998.0,93997.0,0.01773424]
[1764817821236,0.0687176,93998.0,93997.0,0.07631424]
[1764817823631,0.02821,93998.0,93997.0,0.07631424]
[1764817824133,0.05808,93998.0,93997.0,0.07631424]
[1764817824435,0.05808,93998.0,93997.0,0.01773424]
[1764817825036,0.05808,93998.0,93997.0,0.04859424]
[1764817826936,0.05808,93998.0,93997.0,4e-08]
[1764817827331,0.05808,93998.0,93997.0,0.0176315]
[1764817827639,0.05808,93998.0,93997.0,4e-08]
[1764817828141,0.0106376,93999.0,93997.0,4e-08]
[1764817828940,0.0106386,93989.0,93988.0,0.00015957]
[1764817829135,0.06880323,93989.0,93988.0,0.00015957]
[1764817829542,0.0687209,93969.0,93968.0,0.05858]
[1764817830043,0.05808,93967.0,93965.0,0.00013528]
[1764817830735,0.05808,93967.0,93966.0,0.01770629]
[1764817830936,0.05808,93967.0,93966.0,0.00026606]
[1764817831745,0.05808,93967.0,93966.0,0.00126606]
[1764817832045,0.05819366,93967.0,93966.0,0.01842297]
[1764817832234,0.05819366,93967.0,93966.0,0.00126606]
[1764817832531,0.05819366,93967.0,93966.0,0.00526606]
[1764817833046,0.06119366,93967.0,93966.0,0.00126606]
[1764817833341,0.06119366,93967.0,93966.0,0.01875567]
[1764817833541,0.05819366,93967.0,93966.0,0.01775567]
[1764817833847,0.06119366,93967.0,93966.0,0.01775567]
[1764817835550,0.0687012,93966.0,93965.0,0.00013528]
[1764817836148,0.0687012,93966.0,93965.0,0.01783031]
[1764817836941,0.0717012,93966.0,93965.0,0.01783031]
[1764817837855,0.0717012,93966.0,93957.0,0.01765673]
[1764817837856,0.0687021,93958.0,93957.0,0.01765673]
[1764817838054,0.0687021,93958.0,93957.0,0.00015957]
[1764817838253,0.0687021,93958.0,93957.0,7e-08]
[1764817838448,0.0687054,93929.0,93928.0,0.07509]
[1764817838646,0.06884174,93929.0,93928.0,0.05722]
[1764817838948,0.06884174,93929.0,93928.0,0.07483308]
[1764817839658,0.06884174,93929.0,93928.0,0.09248308]
[1764817839953,0.06884174,93929.0,93928.0,0.07883308]
[1764817840851,0.05819634,93929.0,93928.0,0.05131308]
[1764817841057,0.05819634,93929.0,93928.0,0.09779308]
[1764817841249,0.08819634,93929.0,93928.0,0.08014308]
[1764817841643,0.08819634,93929.0,93928.0,0.07614308]
[1764817841862,0.08819634,93929.0,93928.0,0.02161308]
[1764817842656,0.08819634,93929.0,93928.0,0.04982308]
[1764817842858,0.08819634,93929.0,93928.0,0.05082308]
[1764817843246,0.08819634,93929.0,93928.0,0.09630308]
[1764817843456,0.03013634,93929.0,93928.0,0.09630308]
[1764817845248,0.05885634,93929.0,93928.0,0.09630308]
[1764817845450,0.03013634,93929.0,93928.0,0.09630308]
[1764817847461,0.08856634,93929.0,93928.0,0.09630308]
[1764817848960,0.08856634,93929.0,93928.0,0.02161308]
[1764817849155,0.08856634,93929.0,93928.0,0.07865308]
[1764817849361,0.08856634,93929.0,93928.0,0.09630308]
[1764817850465,0.08856634,93929.0,93928.0,0.07865308]
[1764817851356,0.08856634,93929.0,93928.0,0.05082308]
[1764817852455,0.08856634,93929.0,93928.0,0.07865308]
[1764817852658,0.08856634,93929.0,93928.0,0.09630308]
[1764817853161,0.03013634,93929.0,93928.0,0.09630308]
[1764817854066,0.09921174,93929.0,93928.0,0.09630308]
[1764817854568,0.08856634,93929.0,93928.0,0.09630308]
[1764817854863,0.08856634,93929.0,93928.0,0.07865308]
[1764817855065,0.08856634,93929.0,93928.0,0.02161308]
[1764817855257,0.05885634,93929.0,93928.0,0.09630308]
[1764817855457,0.08856634,93929.0,93928.0,0.09630308]
[1764817856560,0.08856634,93929.0,93928.0,0.07865308]
[1764817857963,0.03013634,93929.0,93928.0,0.09630308]
[1764817860968,0.05885634,93929.0,93928.0,0.09630308]
[1764817861167,0.08856634,93929.0,93928.0,0.09630308]
[1764817862664,0.03013634,93929.0,93928.0,0.09630308]
[1764817864357,0.09662174,93929.0,93928.0,0.09630308]
[1764817865165,0.09662174,93929.0,93928.0,0.07865308]
[1764817866164,0.09662174,93929.0,93928.0,0.02161308]
[1764817867266,0.05646,93927.0,93926.0,1e-08]
[1764817867469,0.0841765,93920.0,93919.0,0.00010698]
[1764817867667,0.13856052,93920.0,93919.0,0.01824841]
[1764817867866,0.13856052,93920.0,93919.0,0.00010698]
[1764817868077,0.13856052,93920.0,93919.0,0.01751667]
[1764817870475,0.13856052,93920.0,93919.0,0.01851667]
[1764817872676,0.12149052,93920.0,93919.0,0.07478667]
[1764817873082,0.12149052,93920.0,93919.0,0.04597667]
[1764817873278,0.12149052,93920.0,93919.0,0.01851667]
[1764817873981,0.12149052,93920.0,93919.0,0.04597667]
[1764817874178,0.0971065,93920.0,93919.0,0.04597667]
[1764817874566,0.0971065,93920.0,93919.0,0.01851667]
[1764817874776,0.13854871,93920.0,93919.0,0.01851667]
[1764817876172,0.1141765,93920.0,93919.0,0.01851667]
[1764817876983,0.01682,93896.0,93894.0,0.07610792]
[1764817877172,0.05646,93889.0,93888.0,0.02758087]
[1764817877373,0.08646,93889.0,93888.0,0.05639087]
[1764817877874,0.08646,93889.0,93888.0,0.02758087]
[1764817878076,0.09711,93889.0,93888.0,0.04587535]
[1764817878275,0.09711,93889.0,93888.0,0.07468535]
[1764817878686,0.09711,93889.0,93888.0,0.09139535]
[1764817878986,0.03,93889.0,93888.0,0.09139535]
[1764817879381,0.03,93889.0,93888.0,0.09339535]
[1764817879780,0.03,93889.0,93888.0,0.09439535]
[1764817881584,0.05934,93889.0,93888.0,0.09439535]
[1764817882777,0.03,93889.0,93888.0,0.09439535]
[1764817884788,0.09711,93889.0,93888.0,0.02141535]
[1764817889195,0.09711,93889.0,93888.0,0.07768535]
[1764817889490,0.09711,93889.0,93888.0,0.09439535]
[1764817893190,0.03,93889.0,93888.0,0.09439535]
[1764817894293,8.218e-05,93895.0,93894.0,0.0106494]
[1764817894594,0.03008218,93895.0,93894.0,0.0555]
[1764817895492,0.03008218,93895.0,93894.0,0.0575]
[1764817905102,0.03008218,93895.0,93894.0,0.13360792]
[1764817906003,0.03008218,93895.0,93894.0,0.0575]
[1764817910601,0.03008218,93895.0,93894.0,0.07421]
[1764817922115,0.03008218,93895.0,93894.0,0.16893909]
[1764817923010,0.05964218,93895.0,93894.0,0.16893909]
[1764817923408,0.08863218,93895.0,93894.0,0.15222909]
[1764817923613,0.08863218,93895.0,93894.0,0.0575]
[1764817924213,0.08863218,93895.0,93894.0,0.07863552]
[1764817924410,0.02927,93891.0,93890.0,0.07663552]
[1764817924617,0.05832,93889.0,93888.0,0.01841535]
[1764817924812,0.08832,93889.0,93888.0,0.01841535]
[1764817926115,0.08832,93889.0,93888.0,0.02041535]
[1764817926919,0.08832,93889.0,93888.0,0.02141535]
[1764817929519,0.08832,93889.0,93888.0,0.00312087]
[1764817929719,0.05832,93872.0,93871.0,0.05581]
[1764817929920,0.08832,93872.0,93871.0,0.05581]
[1764817930121,0.08832,93872.0,93871.0,0.07355497]
[1764817930624,0.08844181,93872.0,93871.0,0.07355497]
[1764817930813,0.08844181,93872.0,93871.0,0.08055497]
[1764817932222,0.08844181,93872.0,93871.0,0.07755497]
[1764817932423,0.08844181,93872.0,93871.0,0.02174497]
[1764817932625,0.08844181,93872.0,93871.0,0.07755497]
[1764817934330,0.08844181,93872.0,93871.0,0.02174497]
[1764817934519,0.08844181,93872.0,93871.0,0.07755497]
[1764817934924,0.05939181,93872.0,93871.0,0.07755497]
[1764817935132,0.03012181,93872.0,93871.0,0.07755497]
[1764817936226,0.03012181,93872.0,93871.0,0.15419049]
[1764817936527,0.03012181,93872.0,93871.0,0.07755497]
[1764817938218,1.81e-06,93872.0,93871.0,0.07755497]
[1764817938424,0.03000181,93872.0,93871.0,0.07655497]
[1764817938739,0.03000181,93872.0,93871.0,0.07355497]
[1764817939248,0.03000181,93872.0,93871.0,0.07455497]
[1764817939949,0.05,93882.0,93881.0,0.0664609]
[1764817940146,0.0689701,93888.0,93887.0,0.05581]
[1764817940446,0.0989701,93888.0,93887.0,0.05581]
[1764817941043,0.09905482,93888.0,93887.0,0.05581]
[1764817941847,0.05832,93880.0,93879.0,0.13217906]
[1764817942037,0.08832,93880.0,93879.0,0.13217906]
[1764817943250,0.09032,93880.0,93879.0,0.13217906]
[1764817943653,0.09032,93880.0,93879.0,0.05581]
[1764817943847,0.0689719,93872.0,93871.0,0.14992403]
[1764817944044,0.0989719,93872.0,93871.0,0.01774497]
[1764817944249,0.05832,93862.0,93861.0,0.10430906]
[1764817944444,0.08841861,93862.0,93861.0,0.05581]
[1764817944750,0.08841861,93862.0,93861.0,0.07395259]
[1764817945139,0.08841861,93862.0,93861.0,0.15032165]
[1764817945844,0.03009861,93862.0,93861.0,0.15132165]
[1764817946238,0.03009861,93862.0,93861.0,0.07495259]
[1764817948153,0.03009861,93862.0,93861.0,0.16968168]
[1764817948350,0.03009861,93862.0,93861.0,0.07495259]
[1764817949148,0.03009861,93862.0,93861.0,0.16968168]
[1764817951248,0.05936861,93862.0,93861.0,0.07495259]
[1764817951554,0.08841861,93862.0,93861.0,0.07495259]
[1764817952145,0.08841861,93862.0,93861.0,0.01914259]
[1764817952351,0.08841861,93862.0,93861.0,0.09565658]
[1764817953351,0.08841861,93862.0,93861.0,0.15146658]
[1764817953551,0.08841861,93862.0,93861.0,0.07395259]
[1764817953856,0.08841861,93862.0,93861.0,0.15048721]
[1764817954055,0.08841861,93862.0,93861.0,0.09467721]
[1764817954248,0.08841861,93862.0,93861.0,0.01814259]
[1764817954456,0.05446,93854.0,93853.0,0.15236196]
[1764817954653,0.08446,93854.0,93853.0,0.15236196]
[1764817954855,0.03,93854.0,93853.0,0.18074679]
[1764817955050,0.03,93854.0,93853.0,0.17009269]
[1764817955249,0.08446,93854.0,93853.0,0.07449073]
[1764817955652,0.08546,93854.0,93853.0,0.07449073]
[1764817959659,0.08546,93854.0,93853.0,0.01773073]
[1764817959852,0.05682,93849.0,93848.0,0.15082196]
[1764817960052,0.08682,93849.0,93848.0,0.15082196]
[1764817960352,0.0974745,93849.0,93848.0,0.05522]
[1764817960554,0.0974745,93849.0,93848.0,0.07289636]
[1764817960765,0.1142545,93849.0,93848.0,0.07289636]
[1764817960958,0.1142545,93849.0,93848.0,0.07389636]
[1764817962558,0.1142545,93849.0,93848.0,0.01867636]
[1764817964556,0.1142545,93849.0,93848.0,0.04606636]
[1764817964758,0.1142545,93849.0,93848.0,0.07389636]
[1764817965158,0.1142545,93849.0,93848.0,0.04606636]
[1764817965352,0.1142545,93849.0,93848.0,0.01867636]
[1764817970860,0.05682,93834.0,93832.0,0.0764912]
[1764817971067,0.05695224,93833.0,93832.0,0.0764912]
[1764817971267,0.05682,93830.0,93829.0,1.50012854]
[1764817971470,0.08682,93830.0,93829.0,1.50012854]
[1764817971660,0.08682,93830.0,93829.0,1.51851801]
[1764817972772,0.08782,93830.0,93829.0,1.52851801]
[1764817972974,0.08782,93830.0,93829.0,1.53251801]
[1764817976077,0.08782,93830.0,93829.0,0.08773801]
[1764817976877,0.09082,93830.0,93829.0,0.07773801]
[1764817977468,0.08882,93830.0,93829.0,0.07773801]
[1764817977870,0.08982,93830.0,93829.0,0.07373801]
[1764817978981,0.08882,93830.0,93829.0,0.07373801]
[1764817980190,0.08882,93830.0,93829.0,0.01851801]
[1764817980689,0.08882,93830.0,93829.0,0.07373801]
[1764817982601,0.08682,93830.0,93829.0,0.07373801]
[1764817982896,0.08882,93830.0,93829.0,0.07373801]
[1764817984490,0.08882,93830.0,93829.0,0.04590801]
[1764817984685,0.08882,93830.0,93829.0,0.01851801]
[1764817984991,0.08882,93830.0,93829.0,0.07631801]
[1764817985392,0.08682,93830.0,93829.0,0.07631801]
[1764817985598,0.08882,93830.0,93829.0,0.07631801]
[1764817985991,0.08682,93830.0,93829.0,0.07631801]
[1764817986191,0.09082,93830.0,93829.0,0.07631801]
[1764817988194,0.08982,93830.0,93829.0,0.07631801]
[1764817989302,0.08682,93830.0,93829.0,0.07631801]
[1764817989508,0.08882,93830.0,93829.0,0.07631801]
[1764817989892,0.08682,93830.0,93829.0,0.08697481]
[1764817990209,0.08882,93830.0,93829.0,0.16346601]
[1764817990411,0.08882,93830.0,93829.0,0.16353035]
[1764817990906,0.032,93830.0,93829.0,0.08697481]
[1764817991704,0.03,93830.0,93829.0,0.08697481]
[1764817991900,0.032,93830.0,93829.0,0.08697481]
[1764817992306,0.03,93830.0,93829.0,0.08697481]
[1764817992507,0.031,93830.0,93829.0,0.08697481]
[1764817994812,0.05974,93830.0,93829.0,0.08697481]
[1764817995004,0.031,93830.0,93829.0,0.08697481]
[1764817996910,0.031,93830.0,93829.0,0.58213481]
[1764817997512,0.00013224,93833.0,93832.0,0.0578]
[1764817997704,0.04013224,93833.0,93832.0,0.0578]
[1764817998307,0.01479979,93833.0,93832.0,0.0578]
[1764817998703,0.01679979,93833.0,93832.0,0.0578]
[1764817999201,0.00015984,93842.0,93841.0,0.0684554]
[1764817999414,0.0302741,93842.0,93841.0,0.5635754]
[1764818000408,0.1099341,93842.0,93841.0,0.0684554]
[1764818000612,0.1099341,93842.0,93832.0,0.14989455]
[1764818000613,0.05778,93838.0,93837.0,0.0263559]
[1764818000817,0.08778,93838.0,93837.0,0.12203795]
[1764818001208,0.08778,93838.0,93837.0,0.13773795]
[1764818002112,0.032,93838.0,93837.0,0.13773795]
[1764818002312,0.032,93838.0,93837.0,0.0420559]
[1764818002710,0.06074,93838.0,93837.0,0.0420559]
[1764818002919,0.032,93838.0,93837.0,0.0420559]
[1764818003215,0.033,93838.0,93837.0,0.0420559]
[1764818003417,0.06174,93838.0,93837.0,0.13770992]
[1764818003607,0.09078,93838.0,93837.0,0.13770992]
[1764818004008,0.09078,93838.0,93837.0,0.0420559]
[1764818004210,0.09078,93838.0,93837.0,0.13771]
[1764818004403,0.09078,93838.0,93837.0,0.0420559]
[1764818004610,0.09078,93838.0,93837.0,0.13770481]
[1764818005307,0.09078,93838.0,93837.0,0.0420559]
[1764818006113,0.06174,93838.0,93837.0,0.0420559]
[1764818006320,0.09078,93838.0,93837.0,0.13770205]
[1764818007321,0.09078,93838.0,93837.0,0.0420559]
[1764818007816,0.09078,93838.0,93837.0,0.13770205]
[1764818008415,0.09078,93838.0,93837.0,0.11134615]
[1764818008614,0.09078,93838.0,93837.0,0.09564615]
[1764818008815,0.09078,93838.0,93836.0,0.09564615]
[1764818009021,0.05778,93837.0,93836.0,0.09564615]
[1764818009322,0.08778,93837.0,93836.0,0.09564615]
[1764818009522,0.08778,93837.0,93836.0,0.0157]
[1764818010016,0.068436,93836.0,93835.0,0.09564615]
[1764818010222,0.068436,93836.0,93829.0,0.07501321]
[1764818010223,0.098436,93836.0,93829.0,0.17065936]
[1764818010521,0.05778,93830.0,93829.0,0.20205936]
[1764818010722,0.05778,93830.0,93829.0,0.10641321]
[1764818010723,0.08778,93830.0,93829.0,0.10641321]
[1764818010926,0.08778,93830.0,93829.0,0.20205936]
[1764818011222,0.08778,93830.0,93829.0,0.10641321]
[1764818014218,0.08778,93830.0,93829.0,0.09071321]
[1764818014423,0.08778,93830.0,93829.0,0.01851801]
[1764818014930,0.08778,93830.0,93829.0,0.04991801]
[1764818023337,0.03,93830.0,93829.0,0.04991801]
[1764818023550,0.03,93830.0,93829.0,0.01851801]
[1764818023738,0.03,93830.0,93829.0,0.04991801]
[1764818027453,0.0002741,93842.0,93841.0,0.0314]
[1764818027646,0.0302741,93842.0,93841.0,0.62220717]
[1764818028343,0.0585041,93842.0,93841.0,0.62220717]
[1764818028544,0.0889841,93842.0,93841.0,0.62220717]
[1764818028749,0.0595041,93842.0,93841.0,0.62220717]
[1764818028951,0.0595041,93842.0,93841.0,0.52648]
[1764818029854,0.0332741,93842.0,93841.0,0.52648]
[1764818031151,0.00826226,93842.0,93841.0,0.52648]
[1764818032451,0.00015984,93851.0,93850.0,0.0314]
[1764818032653,0.03015984,93851.0,93850.0,0.0314]
[1764818033253,0.03015984,93851.0,93850.0,0.0420544]
[1764818033650,0.03115984,93851.0,93850.0,0.0420544]
[1764818034043,0.03515984,93851.0,93850.0,0.0420544]
[1764818034449,0.03015984,93851.0,93850.0,0.0430544]
[1764818034650,0.05838984,93851.0,93850.0,0.0470544]
[1764818036059,0.05838984,93851.0,93850.0,0.0430544]
[1764818036359,0.05838984,93851.0,93850.0,0.0460544]
[1764818036555,0.08786984,93851.0,93850.0,0.0470544]
[1764818038458,0.08786984,93851.0,93850.0,0.1454544]
[1764818040157,0.08786984,93851.0,93850.0,0.1414544]
[1764818040357,0.08786984,93851.0,93850.0,0.1444544]
[1764818040761,0.08786984,93851.0,93850.0,0.1414544]
[1764818040960,0.08786984,93851.0,93850.0,0.1444544]
[1764818041858,0.07544,93864.0,93863.0,0.0314]
[1764818042058,0.10544,93864.0,93863.0,0.0314]
[1764818043164,0.10544,93864.0,93863.0,0.0334]
[1764818044661,0.03,93864.0,93863.0,0.0334]
[1764818045058,0.03,93864.0,93863.0,0.12884548]
[1764818045262,0.03,93864.0,93863.0,0.22724548]
[1764818045762,0.02889984,93873.0,93872.0,0.0420519]
[1764818045962,0.05889984,93873.0,93872.0,0.0420519]
[1764818046661,0.07553,93882.0,93881.0,0.0420509]
[1764818046869,0.10553,93882.0,93881.0,0.0420509]
[1764818047861,0.10553,93882.0,93881.0,0.11829825]
[1764818048261,0.10553,93882.0,93881.0,0.0420509]
[1764818048460,0.10553,93882.0,93881.0,0.11829825]
[1764818048655,0.10653,93882.0,93881.0,0.11829825]
[1764818048863,0.10753,93882.0,93881.0,0.11829825]
[1764818049573,0.10753,93882.0,93881.0,0.0420509]
[1764818050264,0.10753,93882.0,93881.0,0.11827717]
[1764818050465,0.10753,93882.0,93881.0,0.0420509]
[1764818050859,0.10753,93882.0,93881.0,0.11827717]
[1764818054761,0.04973,93882.0,93872.0,0.0984]
[1764818054966,0.0578,93873.0,93872.0,0.0984]
[1764818055164,0.0578,93859.0,93858.0,0.16323819]
[1764818055469,0.0878,93859.0,93858.0,0.0678634]
[1764818055667,4e-08,93868.0,93867.0,0.0678625]
[1764818055961,0.002,93882.0,93881.0,0.0678609]
[1764818056168,0.032,93882.0,93881.0,0.0678609]
[1764818056369,0.031,93882.0,93881.0,0.0678609]
[1764818057564,0.05874,93882.0,93881.0,0.0678609]
[1764818058068,0.0888,93882.0,93881.0,0.0678609]
[1764818058461,0.0898,93882.0,93881.0,0.0678609]
[1764818066869,0.10713,93882.0,93881.0,0.07636433]
[1764818067076,0.0684512,93878.0,93877.0,0.0084]
[1764818067268,0.0984512,93878.0,93877.0,0.0084]
[1764818069168,0.0994512,93878.0,93877.0,0.0084]
[1764818070178,0.1004512,93878.0,93877.0,0.0084]
[1764818070777,0.0994512,93878.0,93877.0,0.0084]
[1764818070974,0.0984512,93878.0,93877.0,0.0084]
[1764818071179,0.0578,93869.0,93868.0,0.0398523]
[1764818071374,0.0878,93869.0,93868.0,0.0398523]
[1764818071782,0.0878,93869.0,93868.0,0.0106523]
[1764818072688,0.0878,93869.0,93868.0,0.0678623]
[1764818073377,0.0878,93869.0,93868.0,0.05721]
[1764818073577,0.0878,93869.0,93868.0,0.05821]
[1764818074985,0.0878,93869.0,93868.0,0.0302]
[1764818075188,0.0878,93869.0,93868.0,0.001]
[1764818075880,0.0878,93869.0,93868.0,0.02827]
[1764818076271,0.0878,93869.0,93868.0,0.05608]
[1764818077071,0.0878,93869.0,93868.0,0.05508]
[1764818077276,0.0878,93869.0,93868.0,0.05608]
[1764818077685,0.0878,93869.0,93868.0,0.05508]
[1764818077886,0.0878,93869.0,93868.0,0.05608]
[1764818084191,0.0578,93869.0,93868.0,0.05608]
[1764818090782,0.02874,93869.0,93868.0,0.05608]
[1764818090978,0.05663,93869.0,93868.0,0.05608]
[1764818092788,0.05783,93868.0,93867.0,0.05132551]
[1764818092986,0.00649,93855.0,93833.0,0.18864293]
[1764818093199,0.00649,93855.0,93833.0,0.1324192]
[1764818093200,0.0106562,93834.0,93833.0,0.1324192]
[1764818093693,0.0106562,93834.0,93833.0,0.0559]
[1764818094489,0.0106562,93834.0,93833.0,0.0599]
[1764818095293,0.0406562,93834.0,93833.0,0.0599]
[1764818095790,0.0406562,93834.0,93833.0,0.0609]
[1764818100494,0.03,93834.0,93833.0,0.0609]
[1764818102490,0.03,93834.0,93824.0,0.14998181]
[1764818102491,0.0106567,93830.0,93829.0,1e-08]
[1764818102694,0.0106572,93825.0,93824.0,4e-08]
[1764818102887,0.14982197,93820.0,93806.0,0.07184639]
[1764818103093,0.0106588,93812.0,93811.0,0.0559]
[1764818103296,0.0406588,93812.0,93811.0,0.0559]
[1764818103502,0.05000573,93812.0,93811.0,0.0559]
[1764818103703,0.06993573,93812.0,93811.0,0.0559]
[1764818105301,0.07093573,93812.0,93811.0,0.0559]
[1764818105802,0.06993573,93812.0,93811.0,0.0559]
[1764818106002,0.07193573,93812.0,93811.0,0.0559]
[1764818106305,0.03986,93807.0,93806.0,0.01594639]
[1764818106494,0.06986,93807.0,93806.0,0.01594639]
[1764818107801,0.04993,93807.0,93806.0,0.08738639]
[1764818108106,0.0805193,93807.0,93806.0,0.08738639]
[1764818108494,0.07086,93807.0,93806.0,0.01594639]
[1764818108693,0.07086,93807.0,93806.0,0.08738639]
[1764818111105,0.07086,93807.0,93806.0,0.01594639]
[1764818113799,0.09079,93807.0,93802.0,0.00015984]
[1764818113996,0.09079,93807.0,93766.0,0.00026662]
[1764818113997,0.03986,93777.0,93776.0,0.0298829]
[1764818114197,0.03986,93777.0,93772.0,0.0541]
[1764818114198,0.06546,93773.0,93772.0,0.0541]
[1764818114398,0.09546,93773.0,93772.0,0.0541]
[1764818114593,0.0106638,93767.0,93766.0,0.00026662]
[1764818114807,0.1061238,93767.0,93766.0,0.07170662]
[1764818115205,0.1062216,93767.0,93766.0,0.07170662]
[1764818115401,0.1062216,93767.0,93766.0,0.08786645]
[1764818116110,0.1062216,93767.0,93766.0,0.08986645]
[1764818116709,0.1062216,93767.0,93766.0,0.09086645]
[1764818118898,0.0955578,93767.0,93766.0,0.09086645]
[1764818120001,0.0955578,93767.0,93757.0,0.00015995]
[1764818120002,0.0761248,93758.0,93757.0,0.00015995]
[1764818120204,0.1061248,93758.0,93757.0,0.00015995]
[1764818120403,0.1061248,93758.0,93757.0,0.02990995]
[1764818120611,0.1061248,93758.0,93757.0,0.07159995]
[1764818121115,0.1061248,93758.0,93757.0,0.00015995]
[1764818121416,0.1061248,93758.0,93757.0,0.01634353]
[1764818121612,0.1061248,93758.0,93757.0,0.00215995]
[1764818121805,0.1061248,93758.0,93734.0,0.00012514]
[1764818121806,0.0761272,93737.0,93736.0,0.09579]
[1764818122106,0.1061272,93737.0,93736.0,0.09579]
[1764818122514,0.09546,93737.0,93736.0,0.09579]
[1764818122805,0.05707,93737.0,93736.0,0.09579]
[1764818123008,0.03,93737.0,93736.0,0.09579]
[1764818123314,0.03,93737.0,93736.0,0.11581097]
[1764818124413,0.09646,93737.0,93736.0,0.12781097]
[1764818124810,0.09646,93737.0,93736.0,0.06177097]
[1764818125200,0.09646,93737.0,93736.0,0.10346097]
[1764818125401,0.09646,93737.0,93736.0,0.03202097]
[1764818125706,0.09655876,93737.0,93736.0,0.03202097]
[1764818126012,0.03109876,93737.0,93736.0,0.10146097]
[1764818126809,0.03109876,93737.0,93736.0,0.09846097]
[1764818127610,0.03009876,93737.0,93736.0,0.08946097]
[1764818130322,0.03009876,93737.0,93736.0,0.17540433]
[1764818130512,0.03009876,93737.0,93736.0,0.08946097]
[1764818131512,0.09555876,93737.0,93736.0,0.08946097]
[1764818133112,0.09555876,93737.0,93736.0,0.01802097]
[1764818133418,0.05716876,93737.0,93736.0,0.11381097]
[1764818133926,0.03009876,93737.0,93736.0,0.11381097]
[1764818137622,0.06919876,93737.0,93736.0,0.11381097]
[1764818137831,0.03009876,93737.0,93736.0,0.11381097]
[1764818138742,0.03009876,93737.0,93736.0,0.12447837]
[1764818141318,0.06919876,93737.0,93736.0,0.12447837]
[1764818141632,0.11124876,93737.0,93736.0,0.11335097]